bitfinex/quotes_SOLUSD_20240912
["timestamp","ask_amount","ask_price","bid_price","bid_amount"]
[1726161145576,3.87303629,135.14,135.08,16.5649]
[1726161146077,0.73735407,135.15,135.08,16.5649]
[1726161146385,4.12192449,135.18,135.09,20.0]
[1726161146685,0.73735407,135.17,135.09,20.0]
[1726161147284,4.61039036,135.17,135.09,20.0]
[1726161147669,24.027864,135.16,135.09,20.0]
[1726161147866,0.73735407,135.15,135.09,20.0]
[1726161149565,27.90090029,135.16,135.09,20.0]
[1726161149782,0.73735407,135.15,135.09,20.0]
[1726161150662,3.87303629,135.17,135.11,6.4053]
[1726161150862,0.2488882,135.18,135.12,16.6272]
[1726161152070,24.0257722,135.18,135.12,16.6272]
[1726161152389,0.2488882,135.18,135.13,1.47986865]
[1726161152591,0.2488882,135.18,135.12,16.6272]
[1726161153291,0.2488882,135.18,135.13,20.0]
[1726161153465,0.2488882,135.18,135.14,1.47969182]
[1726161155776,0.2488882,135.18,135.15,1.47958811]
[1726161156176,0.2488882,135.18,135.14,14.74285059]
[1726161156379,0.2488882,135.18,135.15,20.0]
[1726161156575,0.2488882,135.18,135.13,20.0]
[1726161156773,10.30863459,135.18,135.13,34.74285059]
[1726161156986,0.98624227,135.18,135.13,34.74285059]
[1726161157297,0.2488882,135.18,135.13,34.74285059]
[1726161158269,0.2488882,135.18,135.14,1.47838102]
[1726161158470,0.2488882,135.18,135.15,1.47961649]
[1726161159318,0.2488882,135.18,135.13,34.74285059]
[1726161159500,0.2488882,135.18,135.15,22.6397]
[1726161159697,0.2488882,135.18,135.16,1.47949444]
[1726161162092,0.2488882,135.18,135.15,37.38255059]
[1726161162286,0.2488882,135.18,135.15,22.6397]
[1726161166211,0.2488882,135.18,135.15,37.38255059]
[1726161168312,0.2488882,135.18,135.16,1.47958594]
[1726161168613,0.2488882,135.18,135.15,37.38255059]
[1726161168803,0.2488882,135.18,135.15,22.6397]
[1726161171111,0.2488882,135.18,135.15,37.38255059]
[1726161171915,0.2488882,135.18,135.15,22.6397]
[1726161182616,0.2488882,135.18,135.16,1.47959802]
[1726161182813,0.2488882,135.18,135.15,37.38255059]
[1726161183831,0.2488882,135.18,135.15,22.6397]
[1726161189889,0.2488882,135.18,135.15,16.3798]
[1726161190307,0.2488882,135.18,135.12,36.1447]
[1726161192222,0.25098,135.17,135.08,16.5795]
[1726161192432,24.76521807,135.17,135.08,16.5795]
[1726161192611,40.22778817,135.17,135.08,16.5795]
[1726161192793,6.6588,135.16,135.08,16.5795]
[1726161192993,33.56948817,135.17,135.04,14.99173879]
[1726161192994,23.776884,135.14,135.05,16.024]
[1726161193230,0.73735407,135.13,135.05,16.024]
[1726161193726,23.776884,135.14,135.05,16.024]
[1726161193909,0.25098,135.13,135.05,16.024]
[1726161194619,0.25098,135.13,135.06,20.0]
[1726161195123,23.776884,135.14,135.07,1.48044151]
[1726161195316,23.776884,135.14,135.06,34.74285059]
[1726161196119,23.776884,135.14,135.06,20.0]
[1726161196513,24.51423807,135.14,135.06,20.0]
[1726161196711,0.25098,135.13,135.06,20.0]
[1726161197027,23.776884,135.11,135.04,0.2488882]
[1726161197923,23.776884,135.12,135.04,0.2488882]
[1726161198109,0.73735407,135.11,135.04,0.2488882]
[1726161198424,0.73735407,135.11,135.04,20.2488882]
[1726161199004,23.776884,135.1,135.04,0.2488882]
[1726161200899,38.54565515,135.1,135.04,0.2488882]
[1726161201833,0.73735407,135.09,135.04,0.2488882]
[1726161202122,23.776884,135.08,135.04,0.2488882]
[1726161202307,15.50612522,135.07,135.04,0.2488882]
[1726161202897,14.76877115,135.07,135.04,0.2488882]
[1726161203220,23.776884,135.08,135.04,0.2488882]
[1726161203415,0.12549,135.13,135.04,0.2488882]
[1726161203416,14.76877115,135.1,135.04,20.2488882]
[1726161203726,14.76877115,135.1,135.05,1.4805703]
[1726161204022,6.6598,135.14,135.05,1.4805703]
[1726161204023,23.776884,135.11,135.05,1.4805703]
[1726161206325,23.902374,135.12,135.04,1.72949223]
[1726161206529,23.902374,135.12,135.05,1.48053836]
[1726161206921,23.902374,135.12,135.06,1.4805192]
[1726161207621,23.902374,135.12,135.04,0.2488882]
[1726161208625,0.25098,135.11,135.04,0.2488882]
[1726161209144,23.776884,135.1,135.04,0.2488882]
[1726161209313,23.776884,135.08,135.04,0.2488882]
[1726161209513,0.73735407,135.07,135.04,0.2488882]
[1726161209723,23.776884,135.08,135.04,0.2488882]
[1726161209933,0.73735407,135.07,135.04,0.2488882]
[1726161211540,23.776884,135.08,135.04,0.2488882]
[1726161212048,0.73735407,135.07,135.04,0.2488882]
[1726161212215,23.776884,135.08,135.04,0.2488882]
[1726161212935,0.73735407,135.07,135.04,0.2488882]
[1726161213520,0.73735407,135.06,135.04,0.2488882]
[1726161213725,52.25492479,135.09,135.04,0.2488882]
[1726161213726,47.83676286,135.05,135.04,0.2488882]
[1726161214047,47.09940879,135.05,135.04,0.2488882]
[1726161215455,76.03350879,135.05,135.0,0.2488882]
[1726161215644,46.84842879,135.03,135.0,0.2488882]
[1726161215852,0.86284407,135.02,135.0,0.2488882]
[1726161217055,0.73735407,135.01,135.0,0.2488882]
[1726161217859,0.12549,135.02,135.0,0.2488882]
[1726161218033,0.25098,135.02,135.0,0.2488882]
[1726161218233,0.98833407,135.02,135.0,0.2488882]
[1726161218847,46.84842879,135.03,135.0,0.2488882]
[1726161219152,47.58578286,135.03,135.0,0.2488882]
[1726161220042,0.73735407,135.02,135.0,0.2488882]
[1726161223156,23.776884,135.04,135.0,0.2488882]
[1726161223351,0.25098,135.03,135.0,0.2488882]
[1726161224059,23.776884,135.02,135.0,0.2488882]
[1726161224351,24.63972807,135.01,135.0,0.2488882]
[1726161224856,24.76521807,135.01,135.0,0.2488882]
[1726161225658,47.83676286,135.01,135.0,0.2488882]
[1726161226364,39.55744538,135.01,135.0,0.2488882]
[1726161227148,38.82009131,135.01,135.0,0.2488882]
[1726161227464,24.027864,135.01,135.0,0.2488882]
[1726161227646,38.82009131,135.01,135.0,0.2488882]
[1726161228052,39.55744538,135.01,135.0,0.2488882]
[1726161229244,46.22354538,135.01,135.0,0.2488882]
[1726161231063,46.22354538,135.01,134.96,0.2488882]
[1726161231064,14.79222731,134.98,134.96,0.2488882]
[1726161231366,0.73735407,134.97,134.96,0.2488882]
[1726161232971,24.76521807,134.97,134.96,0.2488882]
[1726161234767,23.776884,134.97,134.96,0.2488882]
[1726161235668,23.776884,134.99,134.96,0.2488882]
[1726161235874,14.79222731,135.01,134.96,0.2488882]
[1726161237070,23.902374,135.0,134.96,0.2488882]
[1726161241360,15.52958138,134.99,134.96,0.2488882]
[1726161241563,0.73735407,134.98,134.96,0.2488882]
[1726161243060,14.79222731,134.99,134.96,0.2488882]
[1726161243464,15.52958138,134.99,134.96,0.2488882]
[1726161243674,24.027864,135.0,134.96,16.7368882]
[1726161243855,23.902374,135.0,134.96,16.7368882]
[1726161247370,23.776884,135.0,134.96,16.7368882]
[1726161247687,23.776884,135.02,134.97,1.48159988]
[1726161248380,23.776884,135.02,134.96,16.7368882]
[1726161248761,23.776884,135.02,134.96,18.21854387]
[1726161248980,23.776884,135.02,134.96,18.21852269]
[1726161249157,23.776884,135.02,134.96,16.7368882]
[1726161249857,23.776884,135.02,134.96,18.21851985]
[1726161250680,23.776884,135.02,134.96,16.7368882]
[1726161250885,24.51423807,135.02,134.96,16.7368882]
[1726161251373,23.776884,135.02,134.96,16.7368882]
[1726161251784,15.52958138,135.01,134.96,16.7368882]
[1726161252363,23.776884,135.0,134.96,16.7368882]
[1726161252572,15.52958138,134.99,134.96,0.2488882]
[1726161252773,24.027864,134.98,134.96,0.2488882]
[1726161253971,38.56911131,134.97,134.96,0.2488882]
[1726161254176,38.82009131,134.97,134.96,0.2488882]
[1726161255169,39.55744538,134.97,134.96,0.2488882]
[1726161256091,38.82009131,134.97,134.96,0.2488882]
[1726161261765,24.027864,134.97,134.96,0.2488882]
[1726161262361,22.27,135.04,134.96,0.2488882]
[1726161262564,14.79222731,135.01,134.96,0.2488882]
[1726161263266,14.79222731,135.03,134.96,0.2488882]
[1726161263469,14.79222731,135.04,134.97,21.3265]
[1726161263872,0.73735407,135.03,134.97,21.3265]
[1726161264097,14.79222731,135.04,134.97,21.3265]
[1726161264574,24.027864,135.03,134.97,21.3265]
[1726161266698,0.73735407,135.02,134.97,21.3265]
[1726161272795,24.027864,135.03,134.97,21.3265]
[1726161273188,0.73735407,135.02,134.97,21.3265]
[1726161273385,24.027864,135.03,134.97,21.3265]
[1726161274900,24.027864,135.03,134.98,16.27375834]
[1726161275199,34.69257326,135.08,134.99,21.4813083]
[1726161275400,18.6652636,135.08,134.99,21.4813083]
[1726161276210,0.73735407,135.07,135.01,15.3823]
[1726161279992,0.73735407,135.07,135.02,6.5057]
[1726161280194,3.99852629,135.08,135.02,21.29792731]
[1726161280382,24.027864,135.07,135.02,21.29792731]
[1726161280801,23.776884,135.07,135.02,21.29792731]
[1726161280990,23.776884,135.07,135.02,22.77889644]
[1726161281197,3.87303629,135.08,135.04,14.79222731]
[1726161283394,3.87303629,135.08,135.05,16.1063]
[1726161285404,24.0257722,135.1,135.05,16.1063]
[1726161287392,0.2488882,135.1,135.06,41.24822731]
[1726161287709,0.2488882,135.1,135.09,15.6545]
[1726161297618,0.2488882,135.1,135.09,17.13474802]
[1726161297816,0.2488882,135.1,135.09,15.6545]
[1726161298596,0.2488882,135.1,135.09,17.13474969]
[1726161299522,0.2488882,135.1,135.09,15.6545]
[1726161301126,0.2488882,135.1,135.06,26.456]
[1726161301297,0.2488882,135.1,135.07,1.48041984]
[1726161301620,0.2488882,135.1,135.06,41.24822731]
[1726161301816,0.2488882,135.1,135.08,14.79222731]
[1726161306414,0.2488882,135.1,135.09,1.48036931]
[1726161307317,0.2488882,135.1,135.08,14.79222731]
[1726161307519,0.2488882,135.1,135.06,41.24822731]
[1726161309439,0.2488882,135.1,135.06,26.456]
[1726161310422,0.2488882,135.1,135.06,41.24822731]
[1726161310608,0.2488882,135.1,135.08,14.79222731]
[1726161310812,0.2488882,135.1,135.06,41.24822731]
[1726161311942,0.2488882,135.1,135.08,14.79222731]
[1726161312923,0.2488882,135.1,135.09,20.0]
[1726161313222,0.2488882,135.1,135.09,21.48006067]
[1726161314429,0.2488882,135.1,135.09,20.0]
[1726161315522,0.2488882,135.1,135.09,21.48011928]
[1726161316412,0.2488882,135.1,135.09,20.0]
[1726161317834,0.2488882,135.1,135.09,21.48011953]
[1726161318535,0.2488882,135.1,135.09,20.0]
[1726161319331,0.2488882,135.1,135.06,21.24822731]
[1726161319538,0.2488882,135.1,135.05,15.444]
[1726161319723,0.98624227,135.1,135.05,15.444]
[1726161320533,15.77846958,135.1,135.02,20.99852731]
[1726161320827,24.027864,135.09,135.02,6.2063]
[1726161321137,0.73735407,135.08,135.02,6.2063]
[1726161321324,0.73735407,135.07,135.02,6.2063]
[1726161322327,0.73735407,135.08,135.03,20.0]
[1726161323343,0.73735407,135.07,135.03,20.0]
[1726161324038,24.027864,135.09,135.03,20.0]
[1726161325823,24.027864,135.09,135.02,20.0]
[1726161326437,15.04111551,135.1,135.03,16.27323619]
[1726161326740,15.04111551,135.1,135.03,14.79222731]
[1726161327044,0.2488882,135.1,135.03,14.79222731]
[1726161327429,0.2488882,135.1,135.05,14.79222731]
[1726161327742,0.2488882,135.1,135.06,20.0]
[1726161327914,0.2488882,135.1,135.07,14.79222731]
[1726161328113,0.2488882,135.1,135.08,1.48036457]
[1726161328538,0.2488882,135.1,135.08,21.48036457]
[1726161329238,0.2488882,135.1,135.08,20.0]
[1726161330556,0.2488882,135.1,135.09,16.27254195]
[1726161332322,0.2488882,135.1,135.09,14.79222731]
[1726161334452,0.2488882,135.1,135.09,34.79222731]
[1726161336951,0.2488882,135.1,135.09,36.27215757]
[1726161337137,0.2488882,135.1,135.09,34.79222731]
[1726161337649,0.2488882,135.1,135.09,34.91771731]
[1726161337834,0.2488882,135.1,135.07,15.0022]
[1726161337835,0.2488882,135.1,135.08,20.0]
[1726161338148,0.2488882,135.1,135.08,34.79222731]
[1726161339468,0.2488882,135.1,135.09,1.60535187]
[1726161340158,0.2488882,135.14,135.12,14.79222731]
[1726161340329,0.2488882,135.14,135.13,1.47976186]
[1726161340658,0.2488882,135.14,135.13,21.47976186]
[1726161342857,0.2488882,135.14,135.13,20.0]
[1726161344258,0.2488882,135.14,135.13,21.47975053]
[1726161344642,0.2488882,135.14,135.13,20.0]
[1726161349660,0.2488882,135.14,135.11,20.0]
[1726161350447,0.2488882,135.14,135.1,20.0]
[1726161350648,0.2488882,135.14,135.09,15.7964]
[1726161350848,0.98624227,135.14,135.07,6.479]
[1726161351970,0.98624227,135.14,135.08,20.0]
[1726161352374,0.2488882,135.14,135.08,20.0]
[1726161352575,0.2488882,135.14,135.08,34.79222731]
[1726161352873,0.2488882,135.14,135.11,20.0]
[1726161353058,0.2488882,135.14,135.12,1.47973083]
[1726161353462,0.2488882,135.14,135.11,20.0]
[1726161353979,0.2488882,135.14,135.12,1.47975566]
[1726161355080,0.2488882,135.14,135.11,20.0]
[1726161355776,0.2488882,135.14,135.12,14.79222731]
[1726161355979,0.2488882,135.14,135.13,20.0]
[1726161359369,0.2488882,135.14,135.12,20.0]
[1726161359586,0.2488882,135.14,135.11,20.0]
[1726161359758,0.2488882,135.14,135.09,34.91771731]
[1726161360381,0.2488882,135.14,135.09,34.79222731]
[1726161361181,0.2488882,135.14,135.08,16.632]
[1726161362484,0.2488882,135.14,135.09,20.0]
[1726161363190,0.2488882,135.14,135.09,34.79222731]
[1726161363563,0.2488882,135.14,135.1,1.47986621]
[1726161363762,0.2488882,135.14,135.09,34.79222731]
[1726161364084,0.2488882,135.14,135.12,20.0]
[1726161364282,0.2488882,135.14,135.13,1.47974858]
[1726161364467,0.2488882,135.14,135.13,36.27197589]
[1726161364659,0.2488882,135.14,135.13,34.79222731]
[1726161364858,0.2488882,135.14,135.12,20.0]
[1726161366089,0.2488882,135.14,135.09,14.79222731]
[1726161366264,0.2488882,135.14,135.08,16.632]
[1726161368088,0.2488882,135.14,135.09,20.0]
[1726161372016,0.2488882,135.14,135.1,1.48008887]
[1726161372181,0.2488882,135.14,135.09,20.0]
[1726161373196,0.2488882,135.14,135.1,1.47980711]
[1726161373502,0.2488882,135.14,135.09,20.0]
[1726161373670,0.2488882,135.14,135.11,1.47981121]
[1726161373869,0.2488882,135.14,135.09,20.0]
[1726161374795,0.2488882,135.14,135.1,1.4798353]
[1726161375003,0.2488882,135.14,135.11,1.47968827]
[1726161377677,0.2488882,135.14,135.1,0.12549]
[1726161377898,0.2488882,135.14,135.1,0.25098]
[1726161379302,0.2488882,135.14,135.09,20.0]
[1726161379605,0.2488882,135.14,135.08,16.632]
[1726161380808,0.2488882,135.14,135.09,20.0]
[1726161385908,0.2488882,135.14,135.1,23.05608104]
[1726161386117,0.2488882,135.14,135.11,21.60511471]
[1726161387384,0.2488882,135.14,135.11,20.12549]
[1726161388504,0.2488882,135.14,135.12,1.47949785]
[1726161388809,0.2488882,135.14,135.13,20.12549]
[1726161389316,0.2488882,135.14,135.13,21.60484597]
[1726161389608,0.2488882,135.14,135.13,20.12549]
[1726161389782,0.2488882,135.14,135.13,0.12549]
[1726161390298,0.2488882,135.14,135.12,14.87000898]
[1726161390614,0.2488882,135.14,135.13,20.0]
[1726161390785,0.2488882,135.14,135.13,20.12549]
[1726161391893,0.2488882,135.14,135.13,21.60492544]
[1726161392091,0.2488882,135.14,135.13,20.12549]
[1726161393715,0.2488882,135.14,135.13,20.25098]
[1726161394425,0.2488882,135.14,135.13,21.73024779]
[1726161395813,0.2488882,135.14,135.13,36.09748]
[1726161395983,0.2488882,135.14,135.13,61.35363886]
[1726161396411,0.2488882,135.14,135.13,59.874364]
[1726161396918,0.2488882,135.14,135.13,36.09748]
[1726161397708,0.2488882,135.14,135.13,0.12549]
[1726161397911,0.2488882,135.14,135.13,20.12549]
[1726161398096,0.2488882,135.14,135.11,20.0]
[1726161398405,0.2488882,135.14,135.1,31.11651898]
[1726161399587,0.2488882,135.14,135.11,20.0]
[1726161399791,0.2488882,135.14,135.08,7.74296108]
[1726161400116,0.98624227,135.14,135.06,16.4726]
[1726161400418,0.2488882,135.14,135.04,22.48897116]
[1726161400590,14.74451898,135.13,135.04,22.48897116]
[1726161400789,14.74451898,135.11,135.04,7.74445218]
[1726161400990,0.98624227,135.14,135.04,7.74445218]
[1726161401213,14.74451898,135.11,135.04,7.74445218]
[1726161401403,15.9278,135.12,135.04,7.74445218]
[1726161401722,21.72417305,135.11,135.02,16.4113]
[1726161401920,0.73735407,135.1,135.02,24.14922501]
[1726161402917,0.73735407,135.1,135.02,7.73792501]
[1726161403092,23.81378207,135.1,135.0,0.2488882]
[1726161403301,6.2423,135.11,135.0,0.2488882]
[1726161404010,6.2423,135.11,135.01,23.076428]
[1726161404329,6.2423,135.11,135.02,20.0]
[1726161404714,6.2423,135.11,135.03,24.027864]
[1726161404930,6.2423,135.11,135.04,20.0]
[1726161409331,15.9278,135.12,135.05,1.60583154]
[1726161409635,0.2488882,135.14,135.07,23.076428]
[1726161409829,0.2488882,135.14,135.08,21.4800026]
[1726161413531,0.2488882,135.14,135.09,0.12549]
[1726161413713,0.2488882,135.14,135.1,20.0]
[1726161415836,0.2488882,135.14,135.11,1.47981776]
[1726161416839,0.2488882,135.14,135.1,20.0]
[1726161417133,0.2488882,135.14,135.11,1.6051455]
[1726161417430,0.2488882,135.14,135.11,0.12549]
[1726161418625,0.2488882,135.14,135.12,20.0]
[1726161420311,0.2488882,135.14,135.13,1.47949309]
[1726161420511,0.2488882,135.14,135.13,1.60498309]
[1726161421038,0.2488882,135.14,135.13,0.12549]
[1726161421714,0.2488882,135.14,135.13,1.60490458]
[1726161422817,0.2488882,135.14,135.13,0.12549]
[1726161426643,0.2488882,135.14,135.11,20.0]
[1726161427915,0.2488882,135.14,135.12,0.12549]
[1726161428119,0.2488882,135.14,135.13,34.74534092]
[1726161428335,0.2488882,135.14,135.13,34.87083092]
[1726161428542,0.2488882,135.14,135.13,20.12549]
[1726161429041,0.2488882,135.14,135.13,0.12549]
[1726161429239,0.2488882,135.14,135.1,16.44]
[1726161429557,0.2488882,135.14,135.11,0.12549]
[1726161430333,0.2488882,135.14,135.1,16.44]
[1726161432054,0.2488882,135.14,135.11,20.0]
[1726161436547,0.2488882,135.14,135.12,1.4797463]
[1726161440035,0.2488882,135.14,135.11,34.87083092]
[1726161440341,0.2488882,135.14,135.12,0.12549]
[1726161441640,0.2488882,135.14,135.12,1.60445248]
[1726161443451,0.2488882,135.14,135.12,0.12549]
[1726161444141,0.2488882,135.14,135.12,1.60500352]
[1726161444341,0.2488882,135.14,135.12,0.12549]
[1726161445157,0.2488882,135.14,135.12,1.60500429]
[1726161446832,0.2488882,135.14,135.12,0.12549]
[1726161449757,0.2488882,135.14,135.11,20.0]
[1726161450059,0.2488882,135.14,135.08,7.74250318]
[1726161450230,14.74534092,135.13,135.07,16.3404]
[1726161450544,14.74534092,135.12,135.06,1.28934263]
[1726161450743,14.74534092,135.1,135.05,7.74452233]
[1726161450967,0.73735407,135.12,135.04,16.3404]
[1726161450968,14.74534092,135.11,135.04,16.3404]
[1726161451255,0.73735407,135.1,135.03,7.74600833]
[1726161451561,0.73735407,135.1,135.01,16.0126]
[1726161451562,14.74534092,135.08,135.01,16.0126]
[1726161452755,15.8538,135.1,135.02,20.12549]
[1726161452756,14.74534092,135.09,135.02,20.12549]
[1726161453653,16.59115407,135.1,135.02,20.12549]
[1726161453853,15.8538,135.1,135.02,34.87083092]
[1726161455255,30.98474092,135.13,135.05,20.0]
[1726161455575,30.98474092,135.13,135.06,1.48034951]
[1726161455752,16.2394,135.13,135.06,1.48034951]
[1726161455956,30.98474092,135.13,135.06,14.74534092]
[1726161456157,16.2394,135.13,135.05,20.12549]
[1726161456958,16.2394,135.13,135.05,0.12549]
[1726161457154,16.2394,135.13,135.04,0.12549]
[1726161457354,16.2394,135.13,135.05,20.0]
[1726161457552,16.2394,135.13,135.06,0.12549]
[1726161461173,16.2394,135.13,135.06,1.6056833]
[1726161461380,16.2394,135.13,135.06,0.12549]
[1726161462685,6.7677882,135.14,135.06,0.12549]
[1726161462852,6.7677882,135.14,135.07,20.0]
[1726161463349,0.2488882,135.14,135.08,1.48012644]
[1726161463551,0.2488882,135.14,135.07,43.06026026]
[1726161463770,0.2488882,135.14,135.09,1.48005965]
[1726161463982,0.2488882,135.14,135.1,1.60522218]
[1726161464149,0.2488882,135.14,135.11,1.47971883]
[1726161464473,0.2488882,135.14,135.1,0.12549]
[1726161464986,0.2488882,135.14,135.11,20.0]
[1726161467186,0.2488882,135.14,135.13,0.12549]
[1726161468853,0.2488882,135.14,135.13,0.25098]
[1726161469176,0.2488882,135.14,135.13,20.12549]
[1726161469481,0.2488882,135.14,135.13,0.12549]
[1726161476185,0.2488882,135.14,135.13,14.86862174]
[1726161476558,0.2488882,135.14,135.13,34.86862174]
[1726161477178,0.2488882,135.14,135.13,34.99411174]
[1726161478789,0.2488882,135.14,135.13,58.77099574]
[1726161479289,0.2488882,135.18,135.14,20.0]
[1726161479583,0.2488882,135.18,135.13,38.77099574]
[1726161479584,0.2488882,135.18,135.17,20.0]
[1726161480278,0.2488882,135.18,135.17,20.12549]
[1726161483286,0.2488882,135.18,135.17,20.0]
[1726161483472,0.2488882,135.18,135.15,20.0]
[1726161483780,0.2488882,135.18,135.14,20.12549]
[1726161484086,0.2488882,135.18,135.14,20.0]
[1726161488288,0.2488882,135.18,135.16,20.0]
[1726161488478,0.2488882,135.18,135.17,1.47923908]
[1726161489067,0.2488882,135.18,135.17,16.22237082]
[1726161489274,0.2488882,135.18,135.17,36.22237082]
[1726161489607,0.2488882,135.18,135.17,34.74313174]
[1726161491567,0.2488882,135.18,135.16,20.0]
[1726161492574,0.2488882,135.18,135.17,1.47926083]
[1726161492776,0.2488882,135.18,135.17,34.86862174]
[1726161498295,0.2488882,135.18,135.17,34.99411174]
[1726161500085,0.2488882,135.18,135.11,7.74035652]
[1726161500281,0.2488882,135.18,135.15,14.74313174]
[1726161501303,0.2488882,135.18,135.17,34.74313174]
[1726161501772,0.2488882,135.18,135.17,34.99411174]
[1726161508493,0.2488882,135.18,135.13,7.74065725]
[1726161508690,0.2488882,135.18,135.14,14.74313174]
[1726161509704,0.2488882,135.18,135.15,0.12549]
[1726161509882,0.2488882,135.18,135.13,7.74065725]
[1726161510609,0.2488882,135.18,135.14,14.74313174]
[1726161510811,0.2488882,135.18,135.16,14.74313174]
[1726161511303,0.2488882,135.18,135.17,20.12549]
[1726161511610,0.2488882,135.18,135.14,34.74313174]
[1726161511907,0.2488882,135.18,135.14,14.74313174]
[1726161512290,0.2488882,135.18,135.13,7.74065725]
[1726161513085,0.98624227,135.18,135.14,20.0]
[1726161513401,23.776884,135.17,135.14,20.0]
[1726161513602,23.776884,135.17,135.11,20.0]
[1726161515314,24.0257722,135.18,135.11,20.0]
[1726161516028,0.2488882,135.18,135.11,20.0]
[1726161516500,0.2488882,135.18,135.14,14.74313174]
[1726161518327,0.2488882,135.18,135.12,23.03609255]
[1726161518505,0.2488882,135.18,135.13,20.0]
[1726161519396,0.2488882,135.18,135.14,23.16158255]
[1726161519601,0.2488882,135.18,135.15,20.0]
[1726161523003,0.2488882,135.18,135.16,24.51534761]
[1726161523226,0.2488882,135.18,135.17,20.12549]
[1726161523807,0.2488882,135.18,135.17,20.25098]
[1726161526119,0.2488882,135.18,135.16,20.0]
[1726161527018,0.2488882,135.18,135.17,44.51513707]
[1726161527227,0.2488882,135.18,135.17,43.03609255]
[1726161527727,0.2488882,135.18,135.17,43.28707255]
[1726161528236,0.2488882,135.18,135.17,0.25098]
[1726161528531,0.2488882,135.18,135.17,24.027864]
[1726161528733,0.2488882,135.18,135.17,67.06395655]
[1726161528938,0.2488882,135.18,135.17,43.28707255]
[1726161531027,0.2488882,135.18,135.17,0.25098]
[1726161532409,0.2488882,135.18,135.12,14.25394851]
[1726161532830,0.2488882,135.18,135.12,7.73914851]
[1726161533830,0.2488882,135.18,135.13,20.0]
[1726161534213,0.2488882,135.18,135.14,0.12549]
[1726161534613,0.2488882,135.18,135.14,0.25098]
[1726161541138,0.2488882,135.18,135.13,20.0]
[1726161541348,0.2488882,135.18,135.12,7.74027908]
[1726161541638,0.2488882,135.18,135.08,38.74069255]
[1726161541835,0.98624227,135.18,135.08,38.74069255]
[1726161542019,0.98624227,135.18,135.09,7.74236273]
[1726161542223,0.98624227,135.18,135.08,15.7046]
[1726161542435,0.98624227,135.18,135.08,23.44720522]
[1726161542436,0.2488882,135.18,135.08,23.44720522]
[1726161542613,0.2488882,135.18,135.09,20.0]
[1726161542809,0.2488882,135.18,135.1,0.12549]
[1726161543347,23.776884,135.17,135.1,0.12549]
[1726161547621,0.2488882,135.18,135.11,20.0]
[1726161547827,0.2488882,135.18,135.13,20.0]
[1726161548025,0.2488882,135.18,135.14,0.12549]
[1726161549055,0.2488882,135.18,135.14,0.25098]
[1726161552629,0.2488882,135.18,135.15,20.0]
[1726161552820,0.2488882,135.18,135.16,1.60465142]
[1726161553717,0.2488882,135.18,135.17,0.12549]
[1726161553920,0.2488882,135.18,135.17,20.12549]
[1726161554120,0.2488882,135.18,135.17,20.25098]
[1726161554519,0.2488882,135.18,135.17,0.25098]
[1726161556648,0.2488882,135.18,135.17,23.28707255]
[1726161556854,0.2488882,135.18,135.17,43.28707255]
[1726161557355,0.2488882,135.18,135.17,20.25098]
[1726161557525,0.2488882,135.18,135.17,0.25098]
[1726161558153,0.2488882,135.18,135.17,0.12549]
[1726161558453,0.2488882,135.18,135.11,30.56726607]
[1726161558751,0.2488882,135.18,135.11,7.53117352]
[1726161559158,0.2488882,135.18,135.11,30.56726607]
[1726161559859,0.2488882,135.18,135.12,20.0]
[1726161560533,0.2488882,135.18,135.13,23.03609255]
[1726161560931,0.2488882,135.18,135.14,20.0]
[1726161561134,0.2488882,135.18,135.15,0.12549]
[1726161564354,0.2488882,135.18,135.15,0.25098]
[1726161565235,0.2488882,135.18,135.15,0.12549]
[1726161566950,0.2488882,135.18,135.14,20.0]
[1726161568555,0.2488882,135.18,135.15,0.12549]
[1726161569264,0.2488882,135.18,135.14,20.0]
[1726161569436,0.2488882,135.18,135.13,0.12549]
[1726161569640,0.2488882,135.18,135.13,0.25098]
[1726161570760,0.2488882,135.18,135.13,23.28707255]
[1726161570961,0.2488882,135.18,135.14,20.0]
[1726161571132,0.2488882,135.18,135.15,0.12549]
[1726161574551,0.2488882,135.18,135.15,20.12549]
[1726161575361,0.2488882,135.18,135.17,20.0]
[1726161575566,0.2488882,135.18,135.17,20.12549]
[1726161575940,0.2488882,135.18,135.17,20.0]
[1726161576643,0.2488882,135.18,135.17,20.12549]
[1726161581660,0.2488882,135.18,135.17,20.25098]
[1726161582472,0.2488882,135.22,135.17,21.73002421]
[1726161582647,0.2488882,135.22,135.18,0.25098]
[1726161582844,0.2488882,135.22,135.2,14.74240955]